[Event "December 19 Early 2023"]
[Site "https://www.chess.com"]
[Date "2023.12.19"]
[Round "2"]
[White "Sjugirov, Sanan"]
[Black "Bach Ngoc Thuy Duong"]
[Result "1-0"]
[Board "134"]
[TimeControl "180+1"]
[WhiteFideId "4189302"]
[BlackFideId "12408956"]
[WhiteElo "2569"]
[BlackElo "1970"]
[WhiteTeam "HUN"]
[BlackTeam "VIE"]
[WhiteClock "0:02:10"]
[BlackClock "0:00:00"]

1. e4 {[%clk 0:03:00]}  c5 {[%clk 0:02:55]} 2. Nf3 {[%clk 0:03:01]}  d6 {[%clk 0:02:54]} 3. Bb5+ {[%clk 0:03:01]}  Nc6 {[%clk 0:02:53]} 4. O-O {[%clk 0:03:01]}  Bd7 {[%clk 0:02:53]} 5. Re1 {[%clk 0:03:01]}  a6 {[%clk 0:02:51]} 6. Bxc6 {[%clk 0:03:01]}  Bxc6 {[%clk 0:02:51]} 7. d4 {[%clk 0:03:02]}  cxd4 {[%clk 0:02:46]} 8. Nxd4 {[%clk 0:03:03]}  e5 {[%clk 0:02:41]} 9. Nxc6 {[%clk 0:03:01]}  bxc6 {[%clk 0:02:42]} 10. Nd2 {[%clk 0:03:02]}  Nf6 {[%clk 0:02:38]} 11. Nc4 {[%clk 0:03:02]}  h6 {[%clk 0:02:35]} 12. b3 {[%clk 0:02:55]}  Be7 {[%clk 0:02:34]} 13. Ba3 {[%clk 0:02:55]}  c5 {[%clk 0:02:33]} 14. Qd3 {[%clk 0:02:53]}  O-O {[%clk 0:02:17]} 15. Rad1 {[%clk 0:02:52]}  Rc8 {[%clk 0:02:02]} 16. Bc1 {[%clk 0:02:48]}  Rc6 {[%clk 0:01:56]} 17. Re3 {[%clk 0:02:47]}  Qc7 {[%clk 0:01:40]} 18. Rg3 {[%clk 0:02:47]}  Kh7 {[%clk 0:01:35]} 19. Rh3 {[%clk 0:02:44]}  Rd8 {[%clk 0:01:29]} 20. Bg5 {[%clk 0:02:42]}  Ne8 {[%clk 0:01:08]} 21. Bd2 {[%clk 0:02:38]}  Rc8 {[%clk 0:00:31]} 22. Ne3 {[%clk 0:02:35]}  Bg5 {[%clk 0:00:27]} 23. Nd5 {[%clk 0:02:31]}  Qd8 {[%clk 0:00:27]} 24. c4 {[%clk 0:02:24]}  Bxd2 {[%clk 0:00:20]} 25. Qxd2 {[%clk 0:02:25]}  Nf6 {[%clk 0:00:19]} 26. Nc3 {[%clk 0:02:22]}  Rb8 {[%clk 0:00:17]} 27. Qd3 {[%clk 0:02:20]}  Kg8 {[%clk 0:00:16]} 28. Qf3 {[%clk 0:02:21]}  Kf8 {[%clk 0:00:16]} 29. Rg3 {[%clk 0:02:22]}  Qe7 {[%clk 0:00:16]} 30. Re1 {[%clk 0:02:21]}  Qe6 {[%clk 0:00:16]} 31. h3 {[%clk 0:02:19]}  Rcc8 {[%clk 0:00:15]} 32. Qd3 {[%clk 0:02:18]}  Nh5 {[%clk 0:00:15]} 33. Rf3 {[%clk 0:02:18]}  Nf4 {[%clk 0:00:15]} 34. Qd2 {[%clk 0:02:18]}  Qg6 {[%clk 0:00:14]} 35. Rg3 {[%clk 0:02:18]}  Qf6 {[%clk 0:00:14]} 36. Rd1 {[%clk 0:02:19]}  Rd8 {[%clk 0:00:13]} 37. Kh2 {[%clk 0:02:19]}  Rbc8 {[%clk 0:00:12]} 38. Rf3 {[%clk 0:02:20]}  Qg6 {[%clk 0:00:12]} 39. Rg3 {[%clk 0:02:19]}  Qf6 {[%clk 0:00:12]} 40. Qe3 {[%clk 0:02:20]}  Qe6 {[%clk 0:00:10]} 41. Nd5 {[%clk 0:02:19]}  Ng6 {[%clk 0:00:06]} 42. Qd2 {[%clk 0:02:17]}  Rd7 {[%clk 0:00:06]} 43. Ne3 {[%clk 0:02:16]}  Rdd8 {[%clk 0:00:05]} 44. Nf5 {[%clk 0:02:16]}  Rc6 {[%clk 0:00:06]} 45. Qe3 {[%clk 0:02:14]}  Qc8 {[%clk 0:00:05]} 46. Qf3 {[%clk 0:02:14]}  Qe6 {[%clk 0:00:05]} 47. Qg4 {[%clk 0:02:14]}  Rd7 {[%clk 0:00:05]} 48. h4 {[%clk 0:02:14]}  Qf6 {[%clk 0:00:02]} 49. h5 {[%clk 0:02:14]}  Nf4 {[%clk 0:00:02]} 50. Nxg7 {[%clk 0:02:10]}  Rd8 {[%clk 0:00:00]} 51. Nf5 {[%clk 0:02:10]} 1-0

[Event "December 19 Early 2023"]
[Site "https://www.chess.com"]
[Date "2023.12.19"]
[Round "2"]
[White "Kahlert, Thomas"]
[Black "Mahdavi, Reza"]
[Result "0-1"]
[Board "135"]
[TimeControl "180+1"]
[WhiteFideId "4625242"]
[BlackFideId "12595926"]
[WhiteElo "2221"]
[BlackElo "2426"]
[WhiteTeam "GER"]
[BlackTeam "IRI"]
[WhiteClock "0:00:43"]
[BlackClock "0:00:15"]

1. c4 {[%clk 0:02:59]}  e6 {[%clk 0:02:59]} 2. Nf3 {[%clk 0:02:58]}  d5 {[%clk 0:02:58]} 3. d4 {[%clk 0:02:58]}  Nf6 {[%clk 0:02:58]} 4. Nc3 {[%clk 0:02:58]}  a6 {[%clk 0:02:59]} 5. cxd5 {[%clk 0:02:57]}  exd5 {[%clk 0:03:00]} 6. Bg5 {[%clk 0:02:57]}  c6 {[%clk 0:03:00]} 7. Qc2 {[%clk 0:02:55]}  Be7 {[%clk 0:02:58]} 8. e3 {[%clk 0:02:55]}  O-O {[%clk 0:02:58]} 9. Bd3 {[%clk 0:02:56]}  h6 {[%clk 0:02:58]} 10. Bxf6 {[%clk 0:02:55]}  Bxf6 {[%clk 0:02:58]} 11. O-O {[%clk 0:02:55]}  Re8 {[%clk 0:02:58]} 12. Bf5 {[%clk 0:02:55]}  Nd7 {[%clk 0:02:55]} 13. Rab1 {[%clk 0:02:54]}  g6 {[%clk 0:02:54]} 14. Bh3 {[%clk 0:02:49]}  b6 {[%clk 0:02:50]} 15. Rfc1 {[%clk 0:02:48]}  Bb7 {[%clk 0:02:51]} 16. Na4 {[%clk 0:02:39]}  Nf8 {[%clk 0:02:27]} 17. Qb3 {[%clk 0:02:32]}  b5 {[%clk 0:02:27]} 18. Nc5 {[%clk 0:02:32]}  Bc8 {[%clk 0:02:26]} 19. Bxc8 {[%clk 0:02:32]}  Qxc8 {[%clk 0:02:27]} 20. Qd3 {[%clk 0:02:32]}  Qc7 {[%clk 0:02:19]} 21. Re1 {[%clk 0:02:30]}  Be7 {[%clk 0:02:13]} 22. Rbc1 {[%clk 0:02:30]}  Bd6 {[%clk 0:02:12]} 23. g3 {[%clk 0:02:29]}  Nh7 {[%clk 0:02:10]} 24. e4 {[%clk 0:02:26]}  dxe4 {[%clk 0:02:10]} 25. Nxe4 {[%clk 0:02:26]}  Bb4 {[%clk 0:02:09]} 26. Red1 {[%clk 0:02:24]}  Rad8 {[%clk 0:02:06]} 27. a3 {[%clk 0:02:23]}  Bf8 {[%clk 0:02:06]} 28. Nc5 {[%clk 0:02:21]}  Qb6 {[%clk 0:02:01]} 29. Qc2 {[%clk 0:02:14]}  Rd5 {[%clk 0:01:48]} 30. Re1 {[%clk 0:02:11]}  Rxe1+ {[%clk 0:01:45]} 31. Rxe1 {[%clk 0:02:08]}  Bxc5 {[%clk 0:01:45]} 32. dxc5 {[%clk 0:02:08]}  Qxc5 {[%clk 0:01:44]} 33. Qxc5 {[%clk 0:01:56]}  Rxc5 {[%clk 0:01:45]} 34. Re8+ {[%clk 0:01:56]}  Kg7 {[%clk 0:01:44]} 35. Ra8 {[%clk 0:01:56]}  Nf6 {[%clk 0:01:30]} 36. Rxa6 {[%clk 0:01:55]}  Ne4 {[%clk 0:01:24]} 37. Nd4 {[%clk 0:01:54]}  Rc4 {[%clk 0:01:22]} 38. Nxc6 {[%clk 0:01:52]}  Rc1+ {[%clk 0:01:23]} 39. Kg2 {[%clk 0:01:52]}  Rc2 {[%clk 0:01:24]} 40. Kf3 {[%clk 0:01:48]}  Nd2+ {[%clk 0:01:19]} 41. Ke2 {[%clk 0:01:44]}  Nc4+ {[%clk 0:01:14]} 42. Kf3 {[%clk 0:01:44]}  Rxb2 {[%clk 0:01:12]} 43. Ra7 {[%clk 0:01:40]}  Nd2+ {[%clk 0:01:05]} 44. Ke2 {[%clk 0:01:28]}  Nc4+ {[%clk 0:00:42]} 45. Kf3 {[%clk 0:01:27]}  Rb3+ {[%clk 0:00:43]} 46. Kg2 {[%clk 0:01:27]}  Rxa3 {[%clk 0:00:42]} 47. Rb7 {[%clk 0:01:27]}  Ra2 {[%clk 0:00:28]} 48. Rxb5 {[%clk 0:01:23]}  Ne3+ {[%clk 0:00:29]} 49. Kf3 {[%clk 0:01:18]}  Nd1 {[%clk 0:00:29]} 50. g4 {[%clk 0:01:10]}  Rxf2+ {[%clk 0:00:28]} 51. Kg3 {[%clk 0:01:10]}  Rd2 {[%clk 0:00:27]} 52. Ne5 {[%clk 0:01:09]}  Nc3 {[%clk 0:00:24]} 53. Rb7 {[%clk 0:01:06]}  Ne4+ {[%clk 0:00:25]} 54. Kf4 {[%clk 0:01:06]}  Ng5 {[%clk 0:00:23]} 55. h4 {[%clk 0:01:03]}  Rd4+ {[%clk 0:00:23]} 56. Kg3 {[%clk 0:01:03]}  Ne4+ {[%clk 0:00:21]} 57. Kg2 {[%clk 0:01:01]}  Nd6 {[%clk 0:00:16]} 58. Rd7 {[%clk 0:01:00]}  h5 {[%clk 0:00:12]} 59. gxh5 {[%clk 0:00:57]}  gxh5 {[%clk 0:00:13]} 60. Nf3 {[%clk 0:00:57]}  Rg4+ {[%clk 0:00:13]} 61. Kf1 {[%clk 0:00:54]}  Ne4 {[%clk 0:00:12]} 62. Ke2 {[%clk 0:00:49]}  Ng3+ {[%clk 0:00:12]} 63. Ke3 {[%clk 0:00:48]}  Nf5+ {[%clk 0:00:13]} 64. Kf2 {[%clk 0:00:47]}  Nxh4 {[%clk 0:00:13]} 65. Rxf7+ {[%clk 0:00:45]}  Kxf7 {[%clk 0:00:13]} 66. Ne5+ {[%clk 0:00:45]}  Kf6 {[%clk 0:00:13]} 67. Nxg4+ {[%clk 0:00:46]}  hxg4 {[%clk 0:00:14]} 68. Kg3 {[%clk 0:00:43]}  Kg5 {[%clk 0:00:15]} 0-1

[Event "December 19 Early 2023"]
[Site "https://www.chess.com"]
[Date "2023.12.19"]
[Round "2"]
[White "Vakhlamov, Igor L."]
[Black "Recuero Guerra, Javier"]
[Result "1-0"]
[Board "136"]
[TimeControl "180+1"]
[WhiteFideId "24126748"]
[BlackFideId "2254085"]
[WhiteElo "2407"]
[BlackElo "2208"]
[WhiteTeam "RUS"]
[BlackTeam "ESP"]
[WhiteClock "0:01:41"]
[BlackClock "0:00:00"]

1. e4 {[%clk 0:03:00]}  c5 {[%clk 0:02:56]} 2. Nf3 {[%clk 0:03:01]}  e6 {[%clk 0:02:56]} 3. Nc3 {[%clk 0:03:01]}  Nc6 {[%clk 0:02:55]} 4. d4 {[%clk 0:03:02]}  cxd4 {[%clk 0:02:55]} 5. Nxd4 {[%clk 0:03:03]}  Qc7 {[%clk 0:02:55]} 6. Nxc6 {[%clk 0:03:02]}  bxc6 {[%clk 0:02:54]} 7. Qg4 {[%clk 0:03:02]}  d5 {[%clk 0:02:45]} 8. Qg3 {[%clk 0:03:00]}  Qxg3 {[%clk 0:02:43]} 9. hxg3 {[%clk 0:03:01]}  Nf6 {[%clk 0:02:42]} 10. Bd3 {[%clk 0:03:01]}  h6 {[%clk 0:02:16]} 11. Bd2 {[%clk 0:02:54]}  Bd7 {[%clk 0:02:08]} 12. O-O-O {[%clk 0:02:53]}  Bb4 {[%clk 0:01:50]} 13. a3 {[%clk 0:02:45]}  Bc5 {[%clk 0:01:43]} 14. f3 {[%clk 0:02:44]}  O-O {[%clk 0:01:32]} 15. g4 {[%clk 0:02:43]}  Be7 {[%clk 0:00:26]} 16. e5 {[%clk 0:02:17]}  Ne8 {[%clk 0:00:17]} 17. f4 {[%clk 0:01:57]}  c5 {[%clk 0:00:17]} 18. g3 {[%clk 0:01:46]}  c4 {[%clk 0:00:15]} 19. Be2 {[%clk 0:01:46]}  f6 {[%clk 0:00:08]} 20. exf6 {[%clk 0:01:45]}  Nxf6 {[%clk 0:00:05]} 21. Bf3 {[%clk 0:01:45]}  Rad8 {[%clk 0:00:02]} 22. Be3 {[%clk 0:01:45]}  Bc6 {[%clk 0:00:01]} 23. Bd4 {[%clk 0:01:44]}  Rd7 {[%clk 0:00:02]} 24. Rde1 {[%clk 0:01:43]}  Re8 {[%clk 0:00:01]} 25. Rxe6 {[%clk 0:01:42]}  Kf7 {[%clk 0:00:00]} 26. Rhe1 {[%clk 0:01:41]} 1-0

[Event "December 19 Early 2023"]
[Site "https://www.chess.com"]
[Date "2023.12.19"]
[Round "2"]
[White "Rustemov, Alexander"]
[Black "Mouhamad, Joachim"]
[Result "1-0"]
[Board "138"]
[TimeControl "180+1"]
[WhiteFideId "4119002"]
[BlackFideId "656410"]
[WhiteElo "2787"]
[BlackElo "2125"]
[WhiteTeam "RUS"]
[BlackTeam "FRA"]
[WhiteClock "0:01:18"]
[BlackClock "0:00:00"]

1. d4 {[%clk 0:03:00]}  d5 {[%clk 0:02:59]} 2. c4 {[%clk 0:03:00]}  dxc4 {[%clk 0:02:59]} 3. Nf3 {[%clk 0:02:56]}  Nf6 {[%clk 0:02:57]} 4. e3 {[%clk 0:02:56]}  e6 {[%clk 0:02:57]} 5. Bxc4 {[%clk 0:02:57]}  c5 {[%clk 0:02:55]} 6. O-O {[%clk 0:02:57]}  a6 {[%clk 0:02:53]} 7. e4 {[%clk 0:02:58]}  cxd4 {[%clk 0:02:48]} 8. e5 {[%clk 0:02:58]}  Nd5 {[%clk 0:02:44]} 9. Qxd4 {[%clk 0:02:58]}  Nc6 {[%clk 0:02:36]} 10. Qe4 {[%clk 0:02:53]}  b5 {[%clk 0:02:33]} 11. Bb3 {[%clk 0:02:51]}  Bb7 {[%clk 0:02:32]} 12. Qg4 {[%clk 0:02:42]}  h5 {[%clk 0:02:27]} 13. Qg3 {[%clk 0:02:42]}  Nce7 {[%clk 0:02:14]} 14. Bg5 {[%clk 0:02:38]}  Qb6 {[%clk 0:01:57]} 15. Nbd2 {[%clk 0:02:37]}  Nf5 {[%clk 0:01:52]} 16. Qh3 {[%clk 0:02:37]}  f6 {[%clk 0:01:30]} 17. exf6 {[%clk 0:02:30]}  gxf6 {[%clk 0:01:30]} 18. Bxd5 {[%clk 0:02:12]}  Bxd5 {[%clk 0:01:17]} 19. Bxf6 {[%clk 0:02:12]}  Rh6 {[%clk 0:01:03]} 20. Bg5 {[%clk 0:02:08]}  Rh7 {[%clk 0:00:52]} 21. Rfe1 {[%clk 0:01:54]}  Kf7 {[%clk 0:00:37]} 22. Be3 {[%clk 0:01:44]}  Nxe3 {[%clk 0:00:30]} 23. Ng5+ {[%clk 0:01:44]}  Kg6 {[%clk 0:00:23]} 24. Nxh7 {[%clk 0:01:42]}  Ng4 {[%clk 0:00:20]} 25. Qd3+ {[%clk 0:01:30]}  Kg7 {[%clk 0:00:18]} 26. Re2 {[%clk 0:01:26]}  Bc5 {[%clk 0:00:16]} 27. Rf1 {[%clk 0:01:25]}  Rd8 {[%clk 0:00:15]} 28. Ng5 {[%clk 0:01:23]}  Rd6 {[%clk 0:00:05]} 29. Qh7+ {[%clk 0:01:22]}  Kf6 {[%clk 0:00:06]} 30. Nde4+ {[%clk 0:01:21]}  Bxe4 {[%clk 0:00:02]} 31. Nxe4+ {[%clk 0:01:22]}  Ke5 {[%clk 0:00:00]} 32. Nxc5+ {[%clk 0:01:18]} 1-0

[Event "December 19 Early 2023"]
[Site "https://www.chess.com"]
[Date "2023.12.19"]
[Round "2"]
[White "Leve, Nitai"]
[Black "Zamorano, Jorge"]
[Result "0-1"]
[Board "141"]
[TimeControl "180+1"]
[WhiteFideId "2006898"]
[BlackFideId "173770"]
[WhiteElo "2144"]
[BlackElo "2331"]
[WhiteTeam "USA"]
[BlackTeam "ARG"]
[WhiteClock "0:00:06"]
[BlackClock "0:00:06"]

1. e4 {[%clk 0:03:00]}  c5 {[%clk 0:02:47]} 2. Nf3 {[%clk 0:03:00]}  d6 {[%clk 0:02:47]} 3. d4 {[%clk 0:03:00]}  cxd4 {[%clk 0:02:48]} 4. Qxd4 {[%clk 0:03:01]}  a6 {[%clk 0:02:48]} 5. c4 {[%clk 0:03:00]}  Nf6 {[%clk 0:02:45]} 6. h3 {[%clk 0:02:57]}  e6 {[%clk 0:02:45]} 7. Nc3 {[%clk 0:02:57]}  Be7 {[%clk 0:02:45]} 8. Be2 {[%clk 0:02:56]}  O-O {[%clk 0:02:45]} 9. Qe3 {[%clk 0:02:46]}  Nbd7 {[%clk 0:02:42]} 10. O-O {[%clk 0:02:45]}  b6 {[%clk 0:02:41]} 11. Rd1 {[%clk 0:02:36]}  Qc7 {[%clk 0:02:40]} 12. b3 {[%clk 0:02:33]}  Bb7 {[%clk 0:02:40]} 13. Ba3 {[%clk 0:02:32]}  Nc5 {[%clk 0:02:10]} 14. e5 {[%clk 0:02:23]}  dxe5 {[%clk 0:02:10]} 15. Qxe5 {[%clk 0:02:22]}  Rac8 {[%clk 0:02:10]} 16. Qxc7 {[%clk 0:02:19]}  Rxc7 {[%clk 0:02:09]} 17. Bc1 {[%clk 0:02:10]}  Rd7 {[%clk 0:01:02]} 18. Rxd7 {[%clk 0:02:08]}  Ncxd7 {[%clk 0:01:01]} 19. Be3 {[%clk 0:01:59]}  Rc8 {[%clk 0:01:00]} 20. Rd1 {[%clk 0:01:58]}  b5 {[%clk 0:00:28]} 21. Nd2 {[%clk 0:01:08]}  b4 {[%clk 0:00:12]} 22. Na4 {[%clk 0:01:05]}  Bc6 {[%clk 0:00:12]} 23. Nb6 {[%clk 0:01:00]}  Nxb6 {[%clk 0:00:12]} 24. Bxb6 {[%clk 0:01:01]}  Nd7 {[%clk 0:00:11]} 25. Bd4 {[%clk 0:00:57]}  a5 {[%clk 0:00:10]} 26. Bf3 {[%clk 0:00:57]}  Kf8 {[%clk 0:00:08]} 27. Bxc6 {[%clk 0:00:48]}  Rxc6 {[%clk 0:00:09]} 28. Ne4 {[%clk 0:00:49]}  f6 {[%clk 0:00:08]} 29. Be3 {[%clk 0:00:36]}  Ke8 {[%clk 0:00:08]} 30. Kf1 {[%clk 0:00:34]}  a4 {[%clk 0:00:09]} 31. Ra1 {[%clk 0:00:30]}  Ra6 {[%clk 0:00:08]} 32. Bd4 {[%clk 0:00:23]}  e5 {[%clk 0:00:04]} 33. Bb2 {[%clk 0:00:22]}  f5 {[%clk 0:00:03]} 34. Ng3 {[%clk 0:00:20]}  g6 {[%clk 0:00:03]} 35. Ne2 {[%clk 0:00:17]}  Bf6 {[%clk 0:00:03]} 36. Re1 {[%clk 0:00:15]}  Kf7 {[%clk 0:00:02]} 37. Nc1 {[%clk 0:00:15]}  axb3 {[%clk 0:00:02]} 38. axb3 {[%clk 0:00:15]}  e4 {[%clk 0:00:03]} 39. Bxf6 {[%clk 0:00:10]}  Kxf6 {[%clk 0:00:04]} 40. Ne2 {[%clk 0:00:10]}  Nc5 {[%clk 0:00:04]} 41. Nd4 {[%clk 0:00:10]}  Rd6 {[%clk 0:00:03]} 42. Nc2 {[%clk 0:00:08]}  Nxb3 {[%clk 0:00:03]} 43. Nxb4 {[%clk 0:00:09]}  Nd2+ {[%clk 0:00:04]} 44. Ke2 {[%clk 0:00:08]}  Nxc4 {[%clk 0:00:05]} 45. Rc1 {[%clk 0:00:08]}  Ne5 {[%clk 0:00:03]} 46. Rc7 {[%clk 0:00:07]}  h5 {[%clk 0:00:02]} 47. Nc2 {[%clk 0:00:05]}  Nd3 {[%clk 0:00:02]} 48. Ne3 {[%clk 0:00:05]}  Nf4+ {[%clk 0:00:02]} 49. Ke1 {[%clk 0:00:06]}  h4 {[%clk 0:00:03]} 50. Ra7 {[%clk 0:00:06]}  Nd3+ {[%clk 0:00:03]} 51. Ke2 {[%clk 0:00:06]}  Nf4+ {[%clk 0:00:04]} 52. Ke1 {[%clk 0:00:06]}  Rb6 {[%clk 0:00:04]} 53. g3 {[%clk 0:00:05]}  Rb1+ {[%clk 0:00:04]} 54. Kd2 {[%clk 0:00:05]}  hxg3 {[%clk 0:00:03]} 55. fxg3 {[%clk 0:00:06]}  Nxh3 {[%clk 0:00:04]} 56. Ra6+ {[%clk 0:00:06]}  Kg5 {[%clk 0:00:04]} 57. Ke2 {[%clk 0:00:06]}  Ng1+ {[%clk 0:00:03]} 58. Kf2 {[%clk 0:00:06]}  Nf3 {[%clk 0:00:04]} 59. Nd5 {[%clk 0:00:06]}  Rb2+ {[%clk 0:00:05]} 60. Kf1 {[%clk 0:00:05]}  Nh2+ {[%clk 0:00:03]} 61. Kg1 {[%clk 0:00:06]}  Nf3+ {[%clk 0:00:04]} 62. Kf1 {[%clk 0:00:06]}  Rd2 {[%clk 0:00:02]} 63. Ne7 {[%clk 0:00:06]}  Nh2+ {[%clk 0:00:03]} 64. Ke1 {[%clk 0:00:06]}  Nf3+ {[%clk 0:00:03]} 65. Kf1 {[%clk 0:00:07]}  Ne5 {[%clk 0:00:04]} 66. Re6 {[%clk 0:00:07]}  Ng4 {[%clk 0:00:01]} 67. Rxg6+ {[%clk 0:00:07]}  Kh5 {[%clk 0:00:02]} 68. Re6 {[%clk 0:00:07]}  e3 {[%clk 0:00:02]} 69. Nxf5 {[%clk 0:00:07]}  Rf2+ {[%clk 0:00:02]} 70. Ke1 {[%clk 0:00:06]}  Rxf5 {[%clk 0:00:03]} 71. Ke2 {[%clk 0:00:06]}  Kg5 {[%clk 0:00:03]} 72. Re4 {[%clk 0:00:06]}  Rf2+ {[%clk 0:00:03]} 73. Ke1 {[%clk 0:00:06]}  Rg2 {[%clk 0:00:04]} 74. Re8 {[%clk 0:00:06]}  Rxg3 {[%clk 0:00:04]} 75. Rg8+ {[%clk 0:00:06]}  Kf4 {[%clk 0:00:05]} 76. Rf8+ {[%clk 0:00:06]}  Ke4 {[%clk 0:00:06]} 77. Ke2 {[%clk 0:00:06]}  Rg2+ {[%clk 0:00:06]} 78. Ke1 {[%clk 0:00:06]}  Ne5 {[%clk 0:00:06]} 79. Ra8 {[%clk 0:00:06]}  Nd3+ {[%clk 0:00:06]} 80. Kd1 {[%clk 0:00:06]}  Rd2# {[%clk 0:00:06]} 0-1

[Event "December 19 Early 2023"]
[Site "https://www.chess.com"]
[Date "2023.12.19"]
[Round "2"]
[White "Ozcan, Kaan"]
[Black "Dobrikov, Marco"]
[Result "1-0"]
[Board "144"]
[TimeControl "180+1"]
[WhiteFideId "34566422"]
[BlackFideId "12950378"]
[WhiteElo "2153"]
[BlackElo "2394"]
[WhiteTeam "TUR"]
[BlackTeam "GER"]
[WhiteClock "0:00:39"]
[BlackClock "0:00:52"]

1. e4 {[%clk 0:02:59]}  c5 {[%clk 0:02:58]} 2. Nc3 {[%clk 0:02:59]}  e6 {[%clk 0:02:57]} 3. d4 {[%clk 0:02:58]}  cxd4 {[%clk 0:02:54]} 4. Qxd4 {[%clk 0:02:59]}  Nc6 {[%clk 0:02:55]} 5. Qd2 {[%clk 0:02:59]}  a6 {[%clk 0:02:52]} 6. b3 {[%clk 0:03:00]}  b5 {[%clk 0:02:51]} 7. Bb2 {[%clk 0:03:00]}  Bb7 {[%clk 0:02:52]} 8. O-O-O {[%clk 0:03:00]}  Nf6 {[%clk 0:02:51]} 9. f3 {[%clk 0:03:00]}  Qc7 {[%clk 0:02:51]} 10. Nge2 {[%clk 0:02:59]}  Rc8 {[%clk 0:02:50]} 11. g4 {[%clk 0:02:59]}  Bb4 {[%clk 0:02:47]} 12. Bg2 {[%clk 0:02:58]}  O-O {[%clk 0:02:47]} 13. h4 {[%clk 0:02:57]}  d5 {[%clk 0:02:48]} 14. g5 {[%clk 0:02:56]}  Nh5 {[%clk 0:02:44]} 15. exd5 {[%clk 0:02:53]}  exd5 {[%clk 0:02:43]} 16. a3 {[%clk 0:02:48]}  Ba5 {[%clk 0:02:37]} 17. b4 {[%clk 0:02:46]}  Nxb4 {[%clk 0:02:37]} 18. axb4 {[%clk 0:02:46]}  Bxb4 {[%clk 0:02:38]} 19. Qd4 {[%clk 0:02:43]}  Qa5 {[%clk 0:02:35]} 20. Bh3 {[%clk 0:02:05]}  Rc4 {[%clk 0:02:35]} 21. Qe5 {[%clk 0:02:03]}  d4 {[%clk 0:02:28]} 22. Rxd4 {[%clk 0:01:58]}  Rxc3 {[%clk 0:01:57]} 23. Rxb4 {[%clk 0:01:46]}  Rxc2+ {[%clk 0:01:55]} 24. Kxc2 {[%clk 0:01:46]}  Qxb4 {[%clk 0:01:54]} 25. Bg4 {[%clk 0:01:43]}  Rd8 {[%clk 0:01:38]} 26. Bxh5 {[%clk 0:01:24]}  f6 {[%clk 0:01:24]} 27. gxf6 {[%clk 0:01:23]}  g6 {[%clk 0:01:13]} 28. Bg4 {[%clk 0:00:44]}  Qd2+ {[%clk 0:00:59]} 29. Kb1 {[%clk 0:00:44]}  Qd3+ {[%clk 0:01:00]} 30. Ka1 {[%clk 0:00:41]}  Bd5 {[%clk 0:00:55]} 31. Be6+ {[%clk 0:00:41]}  Kf8 {[%clk 0:00:53]} 32. Bxd5 {[%clk 0:00:38]}  Rxd5 {[%clk 0:00:52]} 33. Qe7+ {[%clk 0:00:38]}  Kg8 {[%clk 0:00:52]} 34. Qg7# {[%clk 0:00:39]} 1-0

[Event "December 19 Early 2023"]
[Site "https://www.chess.com"]
[Date "2023.12.19"]
[Round "2"]
[White "Haring, Filip"]
[Black "Matthes, Aaron"]
[Result "1-0"]
[Board "145"]
[TimeControl "180+1"]
[WhiteFideId "14933080"]
[BlackFideId "16227310"]
[WhiteElo "2375"]
[BlackElo "2384"]
[WhiteTeam "SVK"]
[BlackTeam "GER"]
[WhiteClock "0:00:19"]
[BlackClock "0:01:04"]

1. Nf3 {[%clk 0:03:00]}  Nf6 {[%clk 0:02:58]} 2. c4 {[%clk 0:03:00]}  b6 {[%clk 0:02:58]} 3. g3 {[%clk 0:03:00]}  Bb7 {[%clk 0:02:58]} 4. Bg2 {[%clk 0:03:01]}  e6 {[%clk 0:02:58]} 5. O-O {[%clk 0:03:01]}  Be7 {[%clk 0:02:59]} 6. d4 {[%clk 0:03:02]}  O-O {[%clk 0:02:59]} 7. Nc3 {[%clk 0:03:02]}  Ne4 {[%clk 0:02:54]} 8. Bd2 {[%clk 0:03:02]}  d6 {[%clk 0:02:49]} 9. Qc2 {[%clk 0:02:49]}  Nxd2 {[%clk 0:02:39]} 10. Qxd2 {[%clk 0:02:38]}  Nd7 {[%clk 0:02:38]} 11. e4 {[%clk 0:02:36]}  e5 {[%clk 0:02:34]} 12. Rad1 {[%clk 0:02:34]}  Kh8 {[%clk 0:02:23]} 13. Rfe1 {[%clk 0:02:27]}  Bf6 {[%clk 0:02:18]} 14. b3 {[%clk 0:02:20]}  Qe7 {[%clk 0:02:15]} 15. h4 {[%clk 0:02:09]}  a5 {[%clk 0:02:12]} 16. Bh3 {[%clk 0:01:53]}  exd4 {[%clk 0:02:07]} 17. Nxd4 {[%clk 0:01:52]}  Bxd4 {[%clk 0:02:07]} 18. Qxd4 {[%clk 0:01:52]}  Nc5 {[%clk 0:02:05]} 19. Bg2 {[%clk 0:01:36]}  Rad8 {[%clk 0:02:02]} 20. f4 {[%clk 0:01:33]}  Rfe8 {[%clk 0:01:59]} 21. Qf2 {[%clk 0:01:25]}  Qd7 {[%clk 0:01:56]} 22. Kh2 {[%clk 0:01:19]}  f6 {[%clk 0:01:51]} 23. e5 {[%clk 0:01:00]}  fxe5 {[%clk 0:01:51]} 24. fxe5 {[%clk 0:01:00]}  Rf8 {[%clk 0:01:50]} 25. Qc2 {[%clk 0:00:52]}  Bxg2 {[%clk 0:01:45]} 26. Qxg2 {[%clk 0:00:51]}  Qg4 {[%clk 0:01:41]} 27. exd6 {[%clk 0:00:48]}  Rxd6 {[%clk 0:01:31]} 28. Rxd6 {[%clk 0:00:46]}  cxd6 {[%clk 0:01:32]} 29. Rf1 {[%clk 0:00:39]}  Re8 {[%clk 0:01:24]} 30. Qc6 {[%clk 0:00:33]}  Qe6 {[%clk 0:01:12]} 31. Rf2 {[%clk 0:00:22]}  h6 {[%clk 0:01:10]} 32. Re2 {[%clk 0:00:20]}  Qxe2+ {[%clk 0:01:08]} 33. Nxe2 {[%clk 0:00:21]}  Rxe2+ {[%clk 0:01:08]} 34. Kh3 {[%clk 0:00:22]}  Rxa2 {[%clk 0:01:06]} 35. Qxb6 {[%clk 0:00:20]}  Ra3 {[%clk 0:01:06]} 36. Qxd6 {[%clk 0:00:20]}  Rxb3 {[%clk 0:01:04]} 37. Qxc5 {[%clk 0:00:19]}  Rb8 {[%clk 0:01:04]} 38. Qxa5 {[%clk 0:00:18]}  Rc8 {[%clk 0:01:05]} 39. c5 {[%clk 0:00:19]}  Kg8 {[%clk 0:01:05]} 40. Qb6 {[%clk 0:00:19]}  Kf7 {[%clk 0:01:04]} 41. Qb7+ {[%clk 0:00:19]} 1-0